[Event "Early-Titled-Tuesday-Blitz-September-05-2023"]
[Site "Chess.com"]
[Date "2023.09.05"]
[Round "3"]
[White "blitzking1729"]
[Black "Rud_Makarian"]
[Result "1-0"]
[WhiteElo "2756"]
[BlackElo "2938"]
[TimeControl "180+1"]
[EndTime "8:28:38 PDT"]
[Termination "blitzking1729 won by resignation"]

1. Nf3 {[%clk 0:03:00.9]} 1... Nf6 {[%clk 0:02:58.9]} 2. c4 {[%clk 0:03:00.5]}
2... c6 {[%clk 0:02:58.4]} 3. Nc3 {[%clk 0:02:59]} 3... d5 {[%clk 0:02:59.2]} 4.
e3 {[%clk 0:02:58.9]} 4... a6 {[%clk 0:02:57.3]} 5. Be2 {[%clk 0:02:58.1]} 5...
Bf5 {[%clk 0:02:56]} 6. Qb3 {[%clk 0:02:48.7]} 6... Ra7 {[%clk 0:02:46.5]} 7.
cxd5 {[%clk 0:02:43.5]} 7... cxd5 {[%clk 0:02:46.1]} 8. Qa4+ {[%clk 0:02:42.6]}
8... Nc6 {[%clk 0:02:23.1]} 9. Ne5 {[%clk 0:02:25.9]} 9... Bd7 {[%clk
0:02:23.1]} 10. Nxd7 {[%clk 0:02:21.9]} 10... Qxd7 {[%clk 0:02:23.8]} 11. d4
{[%clk 0:02:21.3]} 11... e6 {[%clk 0:02:23.8]} 12. O-O {[%clk 0:02:21.4]} 12...
Bd6 {[%clk 0:02:23.7]} 13. Bd2 {[%clk 0:02:21.5]} 13... h5 {[%clk 0:02:23.5]}
14. Rfc1 {[%clk 0:02:20.8]} 14... h4 {[%clk 0:02:16.4]} 15. a3 {[%clk
0:02:17.3]} 15... h3 {[%clk 0:02:15.9]} 16. g3 {[%clk 0:02:17.1]} 16... O-O
{[%clk 0:02:11]} 17. b4 {[%clk 0:02:13.3]} 17... e5 {[%clk 0:02:03.1]} 18. dxe5
{[%clk 0:02:08.5]} 18... Bxe5 {[%clk 0:02:04]} 19. Ra2 {[%clk 0:01:26.8]} 19...
Raa8 {[%clk 0:01:57.7]} 20. Bf1 {[%clk 0:01:22.8]} 20... Qf5 {[%clk 0:01:50.4]}
21. Qc2 {[%clk 0:01:15.2]} 21... Qh5 {[%clk 0:01:49]} 22. Qd1 {[%clk 0:01:13]}
22... Qf5 {[%clk 0:01:44]} 23. Qc2 {[%clk 0:01:06.3]} 23... Qe6 {[%clk
0:01:43.6]} 24. Ne2 {[%clk 0:00:57.6]} 24... Ne4 {[%clk 0:01:38.7]} 25. Nf4
{[%clk 0:00:49.8]} 25... Bxf4 {[%clk 0:01:37.2]} 26. exf4 {[%clk 0:00:50.7]}
26... d4 {[%clk 0:01:22.9]} 27. Re1 {[%clk 0:00:42.4]} 27... d3 {[%clk 0:01:14]}
28. Bxd3 {[%clk 0:00:31.1]} 28... Nd4 {[%clk 0:01:13.8]} 29. Rxe4 {[%clk
0:00:25]} 29... Qxe4 {[%clk 0:00:40.4]} 30. Bxe4 {[%clk 0:00:24.2]} 30... Nxc2
{[%clk 0:00:41.2]} 31. Rxc2 {[%clk 0:00:22]} 31... Rac8 {[%clk 0:00:41.6]} 32.
Rxc8 {[%clk 0:00:19.4]} 32... Rxc8 {[%clk 0:00:42.3]} 33. Kf1 {[%clk 0:00:19.8]}
33... Rc4 {[%clk 0:00:39.7]} 34. Bxb7 {[%clk 0:00:19.3]} 34... Rc2 {[%clk
0:00:39.5]} 35. Ke2 {[%clk 0:00:19.8]} 35... Ra2 {[%clk 0:00:39.1]} 36. Bxa6
{[%clk 0:00:20.4]} 36... Rxa3 {[%clk 0:00:38.6]} 37. Bc8 {[%clk 0:00:21.1]}
37... Rb3 {[%clk 0:00:37.2]} 38. Bxh3 {[%clk 0:00:21.2]} 38... g6 {[%clk
0:00:37.9]} 39. Bg2 {[%clk 0:00:21.6]} 39... Kf8 {[%clk 0:00:37.7]} 40. h4
{[%clk 0:00:22.3]} 40... Ke7 {[%clk 0:00:37.9]} 41. Bd5 {[%clk 0:00:22.5]} 41...
Rb2 {[%clk 0:00:37.7]} 42. Bc4 {[%clk 0:00:22.7]} 42... f5 {[%clk 0:00:37.7]}
43. Bd3 {[%clk 0:00:22.2]} 43... Kd6 {[%clk 0:00:36.3]} 44. Ke3 {[%clk
0:00:22.2]} 44... Kd5 {[%clk 0:00:35.8]} 45. b5 {[%clk 0:00:20.6]} 45... Rb3
{[%clk 0:00:35.6]} 46. Ba5 {[%clk 0:00:19.6]} 46... Kc5 {[%clk 0:00:31.4]} 47.
Bd8 {[%clk 0:00:20]} 47... Kd5 {[%clk 0:00:31.2]} 48. f3 {[%clk 0:00:19.3]}
48... Kd6 {[%clk 0:00:29.4]} 49. g4 {[%clk 0:00:19.1]} 49... Kd7 {[%clk
0:00:30]} 50. Bf6 {[%clk 0:00:18.9]} 50... Ke6 {[%clk 0:00:30.1]} 51. Bd4 {[%clk
0:00:19.1]} 51... Kd5 {[%clk 0:00:26.5]} 52. b6 {[%clk 0:00:18.8]} 52... Rb4
{[%clk 0:00:26.3]} 53. gxf5 {[%clk 0:00:15.9]} 53... gxf5 {[%clk 0:00:25.1]} 54.
b7 {[%clk 0:00:11.5]} 54... Rxb7 {[%clk 0:00:23.5]} 55. Bxf5 {[%clk 0:00:12.2]}
55... Re7+ {[%clk 0:00:14.9]} 56. Be5 {[%clk 0:00:11.2]} 56... Ra7 {[%clk
0:00:12.6]} 57. h5 {[%clk 0:00:10.9]} 57... Ra3+ {[%clk 0:00:12.5]} 58. Kf2
{[%clk 0:00:11.4]} 58... Ra6 {[%clk 0:00:09.7]} 59. Bg6 {[%clk 0:00:09.9]} 59...
Ra8 {[%clk 0:00:10.6]} 60. h6 {[%clk 0:00:09.8]} 60... Ke6 {[%clk 0:00:11.4]}
61. h7 {[%clk 0:00:09.9]} 61... Ke7 {[%clk 0:00:10.3]} 62. h8=Q {[%clk
0:00:09.9]} 1-0

[Event "Early-Titled-Tuesday-Blitz-September-05-2023"]
[Site "Chess.com"]
[Date "2023.09.05"]
[Round "3"]
[White "C_K_G"]
[Black "NovikovaGalina"]
[Result "0-1"]
[WhiteElo "2062"]
[BlackElo "2403"]
[TimeControl "180+1"]
[EndTime "8:28:39 PDT"]
[Termination "NovikovaGalina won by resignation"]

1. e4 {[%clk 0:02:58.4]} 1... e6 {[%clk 0:02:59.7]} 2. Nf3 {[%clk 0:02:57.8]}
2... d5 {[%clk 0:03:00.3]} 3. Nc3 {[%clk 0:02:57.9]} 3... Nf6 {[%clk 0:03:00]}
4. e5 {[%clk 0:02:57.7]} 4... Nfd7 {[%clk 0:03:00.5]} 5. d4 {[%clk 0:02:57.8]}
5... c5 {[%clk 0:03:00.5]} 6. Bg5 {[%clk 0:02:57.4]} 6... Qb6 {[%clk 0:02:59]}
7. dxc5 {[%clk 0:02:57.4]} 7... Bxc5 {[%clk 0:02:56.5]} 8. Qd2 {[%clk
0:02:56.4]} 8... Bb4 {[%clk 0:02:45.1]} 9. a3 {[%clk 0:02:52]} 9... Qa5 {[%clk
0:02:39.7]} 10. Bd3 {[%clk 0:02:37.8]} 10... Nc6 {[%clk 0:02:36.6]} 11. O-O
{[%clk 0:02:34.2]} 11... Bxc3 {[%clk 0:02:36.2]} 12. bxc3 {[%clk 0:02:29.6]}
12... Ncxe5 {[%clk 0:02:36.4]} 13. Nxe5 {[%clk 0:02:20.6]} 13... Nxe5 {[%clk
0:02:37.3]} 14. Rfe1 {[%clk 0:02:16.5]} 14... Nxd3 {[%clk 0:02:32.5]} 15. Qxd3
{[%clk 0:02:06.2]} 15... O-O {[%clk 0:02:32.6]} 16. Re3 {[%clk 0:02:04.5]} 16...
f6 {[%clk 0:01:05.4]} 17. Rh3 {[%clk 0:01:51]} 17... f5 {[%clk 0:01:05.1]} 18.
Qg3 {[%clk 0:01:40.9]} 18... Rf7 {[%clk 0:00:46.4]} 19. Qh4 {[%clk 0:01:21.8]}
19... g6 {[%clk 0:00:46.9]} 20. Bf6 {[%clk 0:01:10.9]} 20... Bd7 {[%clk
0:00:45.1]} 21. Bd4 {[%clk 0:01:07.1]} 21... Re8 {[%clk 0:00:39.5]} 22. Qf4
{[%clk 0:01:04.5]} 22... Qa4 {[%clk 0:00:34.7]} 23. Qe5 {[%clk 0:01:02.3]} 23...
Kf8 {[%clk 0:00:31.3]} 24. Bc5+ {[%clk 0:00:52.9]} 24... Kg8 {[%clk 0:00:31.3]}
25. Bd4 {[%clk 0:00:46.4]} 25... Kf8 {[%clk 0:00:29.4]} 26. Qh8+ {[%clk
0:00:29.1]} 26... Ke7 {[%clk 0:00:29]} 27. Bc5+ {[%clk 0:00:28.8]} 27... Kd8
{[%clk 0:00:28.3]} 28. Qe5 {[%clk 0:00:28.7]} 28... Qc6 {[%clk 0:00:22]} 29.
Bxa7 {[%clk 0:00:22.5]} 29... Qc7 {[%clk 0:00:17.4]} 30. Qe3 {[%clk 0:00:19.3]}
30... Kc8 {[%clk 0:00:14.9]} 31. Bb6 {[%clk 0:00:18]} 31... Qc4 {[%clk
0:00:14.8]} 32. Qe5 {[%clk 0:00:15.9]} 32... Ba4 {[%clk 0:00:11.2]} 33. Be3
{[%clk 0:00:15.5]} 33... Qc7 {[%clk 0:00:09]} 34. Qd4 {[%clk 0:00:15.1]} 34...
Bc6 {[%clk 0:00:09.2]} 35. Bf4 {[%clk 0:00:14.2]} 35... e5 {[%clk 0:00:09.8]}
36. Bxe5 {[%clk 0:00:10.3]} 36... Qxe5 {[%clk 0:00:10.7]} 37. Re3 {[%clk
0:00:05.7]} 37... Qxd4 {[%clk 0:00:09.3]} 38. Rxe8+ {[%clk 0:00:06.6]} 38...
Bxe8 {[%clk 0:00:10.2]} 39. cxd4 {[%clk 0:00:07.5]} 39... Rc7 {[%clk 0:00:10]}
40. Ra2 {[%clk 0:00:07]} 40... Rc3 {[%clk 0:00:10.4]} 41. Kf1 {[%clk 0:00:05.7]}
41... Bb5+ {[%clk 0:00:11]} 42. Ke1 {[%clk 0:00:06]} 42... Bc4 {[%clk
0:00:11.9]} 43. Rb2 {[%clk 0:00:06.5]} 43... Rxa3 {[%clk 0:00:11.2]} 44. Kd2
{[%clk 0:00:07]} 44... Ra1 {[%clk 0:00:11.8]} 45. c3 {[%clk 0:00:07.1]} 45...
Rh1 {[%clk 0:00:12.2]} 46. h3 {[%clk 0:00:06.7]} 46... Rh2 {[%clk 0:00:12.8]}
47. Ke3 {[%clk 0:00:07.6]} 47... Rxg2 {[%clk 0:00:13]} 48. Kf4 {[%clk 0:00:07]}
48... Rg1 {[%clk 0:00:13]} 49. Ke5 {[%clk 0:00:07.4]} 49... Kc7 {[%clk 0:00:13]}
50. Kf6 {[%clk 0:00:06.4]} 50... Re1 {[%clk 0:00:13.2]} 51. Kg7 {[%clk
0:00:06.4]} 51... Re7+ {[%clk 0:00:13.9]} 52. Kf6 {[%clk 0:00:07.1]} 52... Rd7
{[%clk 0:00:14.8]} 53. Ke5 {[%clk 0:00:07.4]} 53... Re7+ {[%clk 0:00:14.2]} 54.
Kf6 {[%clk 0:00:07.9]} 54... Re2 {[%clk 0:00:14.7]} 55. Rb4 {[%clk 0:00:06.5]}
55... Rxf2 {[%clk 0:00:14.6]} 56. Kg7 {[%clk 0:00:04.9]} 56... Rh2 {[%clk
0:00:14.8]} 57. Kxh7 {[%clk 0:00:05.4]} 57... f4 {[%clk 0:00:15.6]} 58. Kxg6
{[%clk 0:00:06.3]} 58... f3 {[%clk 0:00:15.6]} 59. Rb1 {[%clk 0:00:06.8]} 59...
f2 {[%clk 0:00:15.9]} 60. Rf1 {[%clk 0:00:07.4]} 60... Bxf1 {[%clk 0:00:15.2]}
0-1

[Event "Early-Titled-Tuesday-Blitz-September-05-2023"]
[Site "Chess.com"]
[Date "2023.09.05"]
[Round "3"]
[White "Firouzja2003"]
[Black "mitrabhaa"]
[Result "1-0"]
[WhiteElo "3131"]
[BlackElo "2820"]
[TimeControl "180+1"]
[EndTime "8:28:41 PDT"]
[Termination "Firouzja2003 won by resignation"]

1. d4 {[%clk 0:02:57.4]} 1... Nf6 {[%clk 0:02:53.9]} 2. c4 {[%clk 0:02:57.1]}
2... e6 {[%clk 0:02:53.9]} 3. Nf3 {[%clk 0:02:56.7]} 3... b6 {[%clk 0:02:51]} 4.
a3 {[%clk 0:02:53.7]} 4... Bb7 {[%clk 0:02:50.7]} 5. Nc3 {[%clk 0:02:53.9]} 5...
Ne4 {[%clk 0:02:50.9]} 6. Nxe4 {[%clk 0:02:52.5]} 6... Bxe4 {[%clk 0:02:51.8]}
7. Nd2 {[%clk 0:02:53]} 7... Bb7 {[%clk 0:02:51.7]} 8. e4 {[%clk 0:02:52.1]}
8... Be7 {[%clk 0:02:51]} 9. Bd3 {[%clk 0:02:52]} 9... O-O {[%clk 0:02:51.3]}
10. Nf3 {[%clk 0:02:50.1]} 10... d6 {[%clk 0:02:50]} 11. O-O {[%clk 0:02:46.3]}
11... Nd7 {[%clk 0:02:49.9]} 12. Be3 {[%clk 0:02:44]} 12... c5 {[%clk
0:02:49.1]} 13. d5 {[%clk 0:02:43.5]} 13... Bf6 {[%clk 0:02:47.8]} 14. Rb1
{[%clk 0:02:33.3]} 14... Qe7 {[%clk 0:02:43.6]} 15. b4 {[%clk 0:02:29.3]} 15...
Rab8 {[%clk 0:02:42.1]} 16. Qd2 {[%clk 0:02:27.4]} 16... Rfe8 {[%clk 0:02:38.6]}
17. h3 {[%clk 0:02:25.6]} 17... Ne5 {[%clk 0:02:22.4]} 18. Nxe5 {[%clk 0:02:25]}
18... Bxe5 {[%clk 0:02:23.3]} 19. bxc5 {[%clk 0:02:02.3]} 19... bxc5 {[%clk
0:02:21.6]} 20. Qa5 {[%clk 0:01:58.9]} 20... Ba8 {[%clk 0:02:11.5]} 21. Rb5
{[%clk 0:01:53.7]} 21... Rxb5 {[%clk 0:02:06.4]} 22. Qxb5 {[%clk 0:01:53.7]}
22... g6 {[%clk 0:02:00.1]} 23. Bg5 {[%clk 0:01:46]} 23... Qf8 {[%clk
0:01:57.6]} 24. Qd7 {[%clk 0:01:41.3]} 24... h6 {[%clk 0:01:55.7]} 25. Bxh6
{[%clk 0:01:38.7]} 25... Re7 {[%clk 0:01:52.6]} 26. Bxf8 {[%clk 0:01:33.5]}
26... Rxd7 {[%clk 0:01:52.8]} 27. Bh6 {[%clk 0:01:34.2]} 27... Rb7 {[%clk
0:01:53.2]} 28. Rb1 {[%clk 0:01:31.8]} 28... Rxb1+ {[%clk 0:01:52.9]} 29. Bxb1
{[%clk 0:01:32.5]} 29... Bb7 {[%clk 0:01:52.5]} 30. Kf1 {[%clk 0:01:21.7]} 30...
Bc8 {[%clk 0:01:47.7]} 31. a4 {[%clk 0:01:18.3]} 31... Bd4 {[%clk 0:01:42.7]}
32. Bc2 {[%clk 0:01:12.9]} 32... f6 {[%clk 0:01:38.4]} 33. h4 {[%clk 0:01:02.6]}
33... e5 {[%clk 0:01:37.7]} 34. Bd1 {[%clk 0:00:56.2]} 34... Bd7 {[%clk
0:01:25.2]} 35. Bd2 {[%clk 0:00:54.5]} 35... Kf7 {[%clk 0:01:22.7]} 36. g4
{[%clk 0:00:53.6]} 36... a6 {[%clk 0:01:20.2]} 37. Ba5 {[%clk 0:00:51.2]} 37...
Be8 {[%clk 0:01:16.8]} 38. h5 {[%clk 0:00:51]} 38... g5 {[%clk 0:01:08.7]} 39.
Bd8 {[%clk 0:00:32]} 39... Bc3 {[%clk 0:00:40.1]} 40. h6 {[%clk 0:00:30.5]}
40... Kg6 {[%clk 0:00:32.6]} 41. h7 {[%clk 0:00:29.2]} 41... Kxh7 {[%clk
0:00:29.2]} 42. Bxf6 {[%clk 0:00:30.1]} 42... Ba5 {[%clk 0:00:29.5]} 43. Be7
{[%clk 0:00:22.6]} 43... Bc7 {[%clk 0:00:28.9]} 44. Bxg5 {[%clk 0:00:23]} 44...
Kg6 {[%clk 0:00:29.1]} 45. f4 {[%clk 0:00:21.5]} 45... Bd7 {[%clk 0:00:17.7]}
46. Kf2 {[%clk 0:00:20.7]} 46... Be8 {[%clk 0:00:10.2]} 47. Kg3 {[%clk
0:00:20.5]} 47... Bd7 {[%clk 0:00:09.2]} 48. Kh4 {[%clk 0:00:20]} 48... exf4
{[%clk 0:00:09.4]} 49. Bxf4 {[%clk 0:00:20.9]} 49... Bd8+ {[%clk 0:00:09.9]} 50.
g5 {[%clk 0:00:20]} 50... Be7 {[%clk 0:00:10.6]} 51. a5 {[%clk 0:00:17.6]} 51...
Kg7 {[%clk 0:00:08.9]} 52. Bg4 {[%clk 0:00:12.6]} 52... Ba4 {[%clk 0:00:08.3]}
53. Bc8 {[%clk 0:00:12.2]} 53... Bc2 {[%clk 0:00:04.8]} 54. Bxa6 {[%clk
0:00:12.6]} 54... Bd8 {[%clk 0:00:05.3]} 55. Bd2 {[%clk 0:00:11.2]} 55... Bxe4
{[%clk 0:00:05.7]} 56. Bb5 {[%clk 0:00:10]} 56... Bc7 {[%clk 0:00:05.9]} 57. a6
{[%clk 0:00:10.4]} 57... Bb8 {[%clk 0:00:05.9]} 58. Bf4 {[%clk 0:00:11.1]} 58...
Kg6 {[%clk 0:00:04]} 59. Bxd6 {[%clk 0:00:11.4]} 1-0

[Event "Early-Titled-Tuesday-Blitz-September-05-2023"]
[Site "Chess.com"]
[Date "2023.09.05"]
[Round "3"]
[White "ExchangeAB"]
[Black "ZuraTqebuchava"]
[Result "0-1"]
[WhiteElo "2434"]
[BlackElo "2269"]
[TimeControl "180+1"]
[EndTime "8:28:41 PDT"]
[Termination "ZuraTqebuchava won by resignation"]

1. d4 {[%clk 0:03:00.9]} 1... d5 {[%clk 0:02:58]} 2. Nc3 {[%clk 0:03:01]} 2...
Nf6 {[%clk 0:02:56.7]} 3. Bf4 {[%clk 0:03:01.1]} 3... c6 {[%clk 0:02:53.2]} 4.
e3 {[%clk 0:03:01.3]} 4... Bf5 {[%clk 0:02:49.2]} 5. f3 {[%clk 0:03:01.5]} 5...
e6 {[%clk 0:02:47.1]} 6. g4 {[%clk 0:03:01.5]} 6... Bg6 {[%clk 0:02:46.1]} 7. h4
{[%clk 0:03:02.2]} 7... h6 {[%clk 0:02:36.3]} 8. Bd3 {[%clk 0:02:57.4]} 8...
Bxd3 {[%clk 0:02:34.3]} 9. cxd3 {[%clk 0:02:56.3]} 9... Bd6 {[%clk 0:02:34.8]}
10. Nge2 {[%clk 0:02:56]} 10... Bxf4 {[%clk 0:02:32.6]} 11. Nxf4 {[%clk
0:02:56.9]} 11... Nbd7 {[%clk 0:02:29.3]} 12. Qb3 {[%clk 0:02:52.7]} 12... Qb6
{[%clk 0:02:27.6]} 13. Na4 {[%clk 0:02:48.2]} 13... Qxb3 {[%clk 0:02:23.1]} 14.
axb3 {[%clk 0:02:49.1]} 14... O-O-O {[%clk 0:02:15.3]} 15. b4 {[%clk 0:02:47.5]}
15... a6 {[%clk 0:02:06.7]} 16. Kf2 {[%clk 0:02:40.2]} 16... Kc7 {[%clk
0:02:00.9]} 17. Ne2 {[%clk 0:02:32.6]} 17... e5 {[%clk 0:01:57.6]} 18. Rhd1
{[%clk 0:02:11.7]} 18... e4 {[%clk 0:01:45.8]} 19. dxe4 {[%clk 0:02:05.5]} 19...
dxe4 {[%clk 0:01:44.9]} 20. Nec3 {[%clk 0:02:05.6]} 20... exf3 {[%clk
0:01:37.7]} 21. Kxf3 {[%clk 0:02:06.5]} 21... Rhe8 {[%clk 0:01:28.8]} 22. g5
{[%clk 0:01:55.7]} 22... hxg5 {[%clk 0:01:19.2]} 23. hxg5 {[%clk 0:01:56.6]}
23... Nd5 {[%clk 0:01:19]} 24. Nxd5+ {[%clk 0:01:55.7]} 24... cxd5 {[%clk
0:01:17.3]} 25. Rac1+ {[%clk 0:01:55]} 25... Kb8 {[%clk 0:01:16.2]} 26. Rh1
{[%clk 0:01:46.9]} 26... Re7 {[%clk 0:01:01.4]} 27. Rh7 {[%clk 0:01:37.6]} 27...
Rde8 {[%clk 0:00:58.5]} 28. Rc3 {[%clk 0:01:34.2]} 28... Nf8 {[%clk 0:00:52.1]}
29. Rxg7 {[%clk 0:01:30.2]} 29... Ne6 {[%clk 0:00:51.2]} 30. Nb6 {[%clk
0:00:48.7]} 30... Nxg7 {[%clk 0:00:47.6]} 31. Nxd5 {[%clk 0:00:48.9]} 31... Re6
{[%clk 0:00:30.3]} 32. Nc7 {[%clk 0:00:43.8]} 32... Rg8 {[%clk 0:00:22.3]} 33.
Nxe6 {[%clk 0:00:43.5]} 33... Nxe6 {[%clk 0:00:22.6]} 34. Ke4 {[%clk 0:00:38.4]}
34... Nxg5+ {[%clk 0:00:21.3]} 35. Kf5 {[%clk 0:00:37.5]} 35... Ne6 {[%clk
0:00:17.4]} 36. Kf6 {[%clk 0:00:36.9]} 36... Rg2 {[%clk 0:00:10.8]} 37. Kxf7
{[%clk 0:00:35.5]} 37... Ng5+ {[%clk 0:00:10.1]} 38. Ke7 {[%clk 0:00:20]} 38...
Rxb2 {[%clk 0:00:10]} 39. d5 {[%clk 0:00:20.2]} 39... Ne4 {[%clk 0:00:04.5]} 40.
Rc4 {[%clk 0:00:18.8]} 40... Nd2 {[%clk 0:00:03.8]} 41. Rd4 {[%clk 0:00:17.2]}
41... Nf3 {[%clk 0:00:01.9]} 42. Rd1 {[%clk 0:00:15]} 42... Rxb4 {[%clk
0:00:01.8]} 43. d6 {[%clk 0:00:15.6]} 43... Ne5 {[%clk 0:00:01.8]} 44. d7 {[%clk
0:00:15]} 44... Nxd7 {[%clk 0:00:01.2]} 45. Kxd7 {[%clk 0:00:14.2]} 45... Ka7
{[%clk 0:00:02.1]} 46. Kd6 {[%clk 0:00:13.2]} 46... Rb5 {[%clk 0:00:03]} 47. e4
{[%clk 0:00:13.3]} 47... Rb3 {[%clk 0:00:03.7]} 48. e5 {[%clk 0:00:13.7]} 48...
Re3 {[%clk 0:00:04.5]} 49. e6 {[%clk 0:00:14.1]} 49... a5 {[%clk 0:00:04.8]} 50.
Kd7 {[%clk 0:00:14.4]} 50... b5 {[%clk 0:00:05]} 51. e7 {[%clk 0:00:15]} 51...
Kb6 {[%clk 0:00:05.4]} 52. e8=Q {[%clk 0:00:15.2]} 52... Rxe8 {[%clk 0:00:05.9]}
53. Kxe8 {[%clk 0:00:16.1]} 53... b4 {[%clk 0:00:06.6]} 54. Kd7 {[%clk
0:00:16.5]} 54... Kb5 {[%clk 0:00:07.5]} 55. Kd6 {[%clk 0:00:16.9]} 55... b3
{[%clk 0:00:08.3]} 56. Kd5 {[%clk 0:00:17.2]} 56... Kb4 {[%clk 0:00:08.9]} 57.
Kd4 {[%clk 0:00:17.7]} 57... a4 {[%clk 0:00:09.6]} 58. Kd3 {[%clk 0:00:17.2]}
58... a3 {[%clk 0:00:10.2]} 59. Rh1 {[%clk 0:00:16]} 59... a2 {[%clk 0:00:10.3]}
60. Rg1 {[%clk 0:00:03.6]} 60... b2 {[%clk 0:00:10]} 61. Kc2 {[%clk 0:00:04.1]}
61... a1=Q {[%clk 0:00:10.1]} 62. Rg4+ {[%clk 0:00:02.9]} 62... Kb5 {[%clk
0:00:09.8]} 63. Rg5+ {[%clk 0:00:03.4]} 63... Kc6 {[%clk 0:00:10.3]} 64. Rg6+
{[%clk 0:00:04]} 64... Kd7 {[%clk 0:00:10.9]} 0-1

[Event "Early-Titled-Tuesday-Blitz-September-05-2023"]
[Site "Chess.com"]
[Date "2023.09.05"]
[Round "3"]
[White "LeoWin2012"]
[Black "TatjanaVasilevich"]
[Result "0-1"]
[WhiteElo "2232"]
[BlackElo "2491"]
[TimeControl "180+1"]
[EndTime "8:28:41 PDT"]
[Termination "TatjanaVasilevich won by checkmate"]

1. e4 {[%clk 0:03:00.9]} 1... c5 {[%clk 0:02:59.4]} 2. Nf3 {[%clk 0:03:00.6]}
2... Nc6 {[%clk 0:02:59.6]} 3. d4 {[%clk 0:02:58.8]} 3... cxd4 {[%clk
0:02:59.8]} 4. Nxd4 {[%clk 0:02:59.7]} 4... Nf6 {[%clk 0:03:00]} 5. Nc3 {[%clk
0:02:59.5]} 5... e6 {[%clk 0:03:00.4]} 6. Be3 {[%clk 0:02:56.1]} 6... Bb4 {[%clk
0:03:00.2]} 7. f3 {[%clk 0:02:54.2]} 7... d5 {[%clk 0:02:59.6]} 8. Nxc6 {[%clk
0:02:26.9]} 8... bxc6 {[%clk 0:02:59.2]} 9. exd5 {[%clk 0:02:21.8]} 9... cxd5
{[%clk 0:02:56.9]} 10. Bb5+ {[%clk 0:02:21]} 10... Bd7 {[%clk 0:02:56.5]} 11.
Bxd7+ {[%clk 0:02:20.9]} 11... Qxd7 {[%clk 0:02:57.4]} 12. O-O {[%clk
0:02:18.6]} 12... O-O {[%clk 0:02:56.6]} 13. Bd4 {[%clk 0:02:17.1]} 13... Ne8
{[%clk 0:02:54.3]} 14. f4 {[%clk 0:02:07.8]} 14... f6 {[%clk 0:02:50.6]} 15. Qg4
{[%clk 0:02:03.6]} 15... Nd6 {[%clk 0:02:49.3]} 16. Rf3 {[%clk 0:01:59.7]} 16...
Nf5 {[%clk 0:02:47.3]} 17. Bf2 {[%clk 0:01:57.2]} 17... Bxc3 {[%clk 0:02:42.3]}
18. bxc3 {[%clk 0:01:56.9]} 18... Rab8 {[%clk 0:02:36.3]} 19. Qh5 {[%clk
0:01:44.8]} 19... Rb2 {[%clk 0:02:32.3]} 20. g4 {[%clk 0:01:41.3]} 20... Nd6
{[%clk 0:02:31.7]} 21. Bc5 {[%clk 0:01:26.8]} 21... Rxc2 {[%clk 0:02:22.8]} 22.
Bxd6 {[%clk 0:01:19.5]} 22... Qxd6 {[%clk 0:02:21.7]} 23. Rh3 {[%clk 0:01:18.6]}
23... h6 {[%clk 0:02:18.7]} 24. Qg6 {[%clk 0:01:17.4]} 24... Qc5+ {[%clk
0:02:14.1]} 25. Kh1 {[%clk 0:01:16.5]} 25... Qf2 {[%clk 0:01:50]} 26. Rg1 {[%clk
0:01:15.2]} 26... Re2 {[%clk 0:01:35.3]} 27. g5 {[%clk 0:00:25.7]} 27... Re1
{[%clk 0:01:07.1]} 28. gxh6 {[%clk 0:00:20.2]} 28... Rxg1+ {[%clk 0:01:04.2]}
29. Qxg1 {[%clk 0:00:21.1]} 29... Qxg1+ {[%clk 0:01:04.7]} 30. Kxg1 {[%clk
0:00:22]} 30... gxh6 {[%clk 0:01:05.1]} 31. Rxh6 {[%clk 0:00:22.9]} 31... Kg7
{[%clk 0:01:05]} 32. Rh3 {[%clk 0:00:22.8]} 32... Rb8 {[%clk 0:01:05.3]} 33.
Rg3+ {[%clk 0:00:22.6]} 33... Kf7 {[%clk 0:01:05.6]} 34. Rf3 {[%clk 0:00:14.9]}
34... Rb2 {[%clk 0:01:04]} 35. Rf2 {[%clk 0:00:14.6]} 35... Rb1+ {[%clk
0:01:03.4]} 36. Kg2 {[%clk 0:00:13.5]} 36... Rc1 {[%clk 0:01:03.8]} 37. Rf3
{[%clk 0:00:12.7]} 37... Rc2+ {[%clk 0:01:03.4]} 38. Rf2 {[%clk 0:00:09.4]}
38... Rxc3 {[%clk 0:01:03.6]} 39. Rb2 {[%clk 0:00:09.1]} 39... Ra3 {[%clk
0:01:03.7]} 40. h4 {[%clk 0:00:08.4]} 40... Kg6 {[%clk 0:01:03.9]} 41. Re2
{[%clk 0:00:07.2]} 41... Kf5 {[%clk 0:01:02.3]} 42. h5 {[%clk 0:00:07.3]} 42...
Rc3 {[%clk 0:00:56.1]} 43. h6 {[%clk 0:00:05.2]} 43... Rc8 {[%clk 0:00:56.3]}
44. Kf3 {[%clk 0:00:03]} 44... Rh8 {[%clk 0:00:55]} 45. Rh2 {[%clk 0:00:02.9]}
45... Kg6 {[%clk 0:00:55.5]} 46. Re2 {[%clk 0:00:01.8]} 46... Rxh6 {[%clk
0:00:35.9]} 47. Rxe6 {[%clk 0:00:01.8]} 47... Rh2 {[%clk 0:00:36]} 48. Ra6
{[%clk 0:00:01.1]} 48... Kf5 {[%clk 0:00:35.8]} 49. Rxa7 {[%clk 0:00:01.3]}
49... Rh3+ {[%clk 0:00:36]} 50. Kg2 {[%clk 0:00:01.8]} 50... Rc3 {[%clk
0:00:36]} 51. Ra6 {[%clk 0:00:02.1]} 51... d4 {[%clk 0:00:36.2]} 52. a4 {[%clk
0:00:01.8]} 52... d3 {[%clk 0:00:35.5]} 53. Rd6 {[%clk 0:00:02.4]} 53... Kxf4
{[%clk 0:00:30.7]} 54. a5 {[%clk 0:00:02.2]} 54... Rc2+ {[%clk 0:00:26.9]} 55.
Kf1 {[%clk 0:00:01.8]} 55... Ke3 {[%clk 0:00:27.2]} 56. Re6+ {[%clk 0:00:01.5]}
56... Kd2 {[%clk 0:00:27.3]} 57. a6 {[%clk 0:00:02.1]} 57... Ra2 {[%clk
0:00:27.5]} 58. Rd6 {[%clk 0:00:01.1]} 58... Kc2 {[%clk 0:00:27.3]} 59. Rc6+
{[%clk 0:00:01.5]} 59... Kd1 {[%clk 0:00:27.5]} 60. Rd6 {[%clk 0:00:01.9]} 60...
d2 {[%clk 0:00:27.9]} 61. Kf2 {[%clk 0:00:01.8]} 61... Kc1 {[%clk 0:00:27.1]}
62. Ke2 {[%clk 0:00:01.7]} 62... d1=Q+ {[%clk 0:00:27.1]} 63. Ke3 {[%clk
0:00:02.3]} 63... Qxd6 {[%clk 0:00:27.3]} 64. a7 {[%clk 0:00:02.5]} 64... Qd2+
{[%clk 0:00:24.8]} 65. Kf3 {[%clk 0:00:03.4]} 65... Ra3+ {[%clk 0:00:24.2]} 66.
Kg4 {[%clk 0:00:02.8]} 66... Qg5# {[%clk 0:00:23.8]} 0-1